bitfinex/quotes_ETHUSD_20220212
["timestamp","ask_amount","ask_price","bid_price","bid_amount"]
[1644643581325,0.35403122,2931.9,2931.5,1.1022292]
[1644643581524,0.35303122,2931.8,2931.5,0.01290895]
[1644643581724,0.35303122,2931.7,2931.5,0.01290895]
[1644643581924,0.35303122,2931.6,2931.5,0.01290895]
[1644643582629,0.35403122,2931.9,2931.5,1.10233237]
[1644643582828,0.35303122,2931.8,2931.5,0.01290895]
[1644643583029,0.35303122,2931.7,2931.5,0.01290895]
[1644643583232,0.35303122,2931.6,2931.5,0.01290895]
[1644643583432,0.35403122,2931.9,2931.5,0.01290895]
[1644643583633,0.35403122,2931.9,2931.6,1.0892533]
[1644643583869,0.35303122,2931.9,2931.6,1.0892533]
[1644643584061,0.35303122,2931.8,2931.6,1.0892533]
[1644643584263,0.35303122,2931.7,2931.6,1.0892533]
[1644643584462,0.35303122,2931.9,2931.6,1.0892533]
[1644643585070,0.35303122,2931.9,2931.6,1.9421033]
[1644643585267,0.35303122,2931.9,2931.6,0.85285]
[1644643585468,0.35303122,2931.8,2931.6,0.85285]
[1644643585666,0.35303122,2931.7,2931.6,0.85285]
[1644643585868,0.35303122,2931.7,2931.5,0.01944449]
[1644643586068,0.35303122,2931.6,2931.5,0.01944449]
[1644643586367,0.35303122,2931.6,2931.5,0.86578895]
[1644643586567,0.35403122,2932.1,2931.5,1.95477424]
[1644643586769,0.36062047,2932.0,2931.6,1.08898529]
[1644643586968,0.35303122,2931.9,2931.6,1.08898529]
[1644643587168,0.35303122,2931.9,2931.5,0.86578895]
[1644643587368,0.35303122,2931.9,2931.6,1.08883479]
[1644643587816,0.00758954,2932.0,2931.6,1.08883479]
[1644643588016,0.35303122,2931.9,2931.6,1.08883479]
[1644643588915,0.35303122,2931.8,2931.6,1.08883479]
[1644643589115,0.35303122,2931.7,2931.6,1.08883479]
[1644643589815,0.35303122,2931.9,2931.6,1.08883479]
[1644643590221,0.3521838,2931.8,2931.6,1.08883479]
[1644643590419,0.00758945,2932.0,2931.6,1.08883479]
[1644643591214,0.1715,2932.3,2931.6,1.08883479]
[1644643591463,0.00758973,2932.0,2931.6,1.08883479]
[1644643592462,0.001,2932.3,2931.6,1.08883479]
[1644643592666,0.00758973,2932.0,2931.6,1.08883479]
[1644643593666,0.81407038,2932.2,2931.6,1.08883479]
[1644643593867,0.00758973,2932.0,2931.6,1.08883479]
[1644643594868,0.1705,2932.2,2931.6,1.08883479]
[1644643595111,0.00758973,2932.0,2931.6,1.08883479]
[1644643596019,0.001,2932.3,2931.6,1.08883479]
[1644643596218,0.00758972,2932.0,2931.6,1.08883479]
[1644643597219,0.001,2932.3,2931.6,1.08883479]
[1644643597419,0.00758972,2932.0,2931.6,1.08883479]
[1644643598420,0.1715,2932.3,2931.6,1.08883479]
[1644643598622,0.00758972,2932.0,2931.6,1.08883479]
[1644643599562,0.1715,2932.3,2931.6,1.08883479]
[1644643599764,0.00758972,2932.0,2931.5,0.01944448]
[1644643600864,0.64457038,2932.3,2931.5,0.01290895]
[1644643601064,0.00758963,2932.0,2931.5,0.01944448]
[1644643601965,0.001,2932.3,2931.5,0.01290895]
[1644643602165,0.00758963,2932.0,2931.5,0.01944448]
[1644643603217,0.64357038,2932.2,2931.5,0.01290895]
[1644643603417,0.00758962,2932.0,2931.5,0.01944445]
[1644643604016,0.00758962,2932.0,2931.5,0.0065355]
[1644643604416,0.001,2932.3,2931.4,0.85292]
[1644643604618,0.00758962,2932.0,2931.5,0.0065355]
[1644643605517,0.64357038,2932.2,2931.3,1.35494997]
[1644643605916,0.00758962,2932.0,2931.5,0.0065355]
[1644643606767,0.64357038,2932.1,2931.3,0.17324997]
[1644643607170,0.00758962,2932.0,2931.5,0.00653549]
[1644643607971,0.65862981,2932.1,2931.3,0.17324997]
[1644643608274,0.00758962,2932.0,2931.5,0.00653549]
[1644643609275,0.01505943,2932.1,2931.4,0.85292]
[1644643609478,0.00758962,2932.0,2931.5,0.00653549]
[1644643609876,0.00758962,2932.0,2931.6,0.85287]
[1644643610315,0.01505943,2932.1,2931.7,1.09144115]
[1644643610316,0.35416131,2931.9,2931.7,1.09144115]
[1644643610516,0.35416131,2931.8,2931.7,1.09144115]
[1644643610919,0.35416131,2931.9,2931.7,1.09144115]
[1644643611120,0.35416131,2931.8,2931.7,1.09144115]
[1644643611722,0.35416131,2932.0,2931.7,1.09144115]
[1644643611924,0.37776338,2932.0,2931.8,0.85273]
[1644643612122,0.001,2932.3,2932.0,0.54433301]
[1644643612321,0.00391115,2932.6,2932.0,1.14433301]
[1644643612522,0.00391115,2932.6,2932.1,0.99858412]
[1644643613122,0.00391115,2932.6,2932.1,1.70515]
[1644643613123,0.64748153,2932.6,2932.1,1.70515]
[1644643613324,0.64748153,2932.6,2932.0,0.54433301]
[1644643613724,0.64357038,2932.5,2932.0,0.54433301]
[1644643613968,0.64748153,2932.6,2932.0,0.54433301]
[1644643614169,0.001,2932.7,2932.0,0.54433301]
[1644643614170,0.64357038,2932.5,2932.0,0.54433301]
[1644643614370,0.64748153,2932.5,2932.0,0.54433301]
[1644643615568,0.00817276,2932.4,2932.0,0.54433301]
[1644643615769,0.00817276,2932.4,2932.0,0.84433301]
[1644643616469,0.00391115,2932.6,2932.0,0.54433301]
[1644643616670,0.00817279,2932.3,2932.0,1.86749041]
[1644643616869,0.00817279,2932.3,2932.1,0.02239037]
[1644643617717,0.00391115,2932.6,2932.1,0.02239037]
[1644643617915,0.00816335,2932.3,2932.2,0.85268]
[1644643618916,0.00391115,2932.6,2932.2,0.85268]
[1644643619114,0.00816331,2932.4,2932.2,0.85268]
[1644643619521,0.00816331,2932.4,2932.1,0.87510037]
[1644643619919,0.64357038,2932.9,2932.1,0.87510037]
[1644643619920,0.00391115,2932.8,2932.1,0.87510037]
[1644643620421,0.00816331,2932.4,2932.1,0.87510037]
[1644643621226,0.00391115,2932.6,2932.1,0.87510037]
[1644643621470,0.00817466,2932.4,2932.1,0.87510037]
[1644643621668,0.00817466,2932.4,2932.1,0.85271]
[1644643622469,0.00391115,2932.7,2932.1,0.85271]
[1644643622673,0.00817466,2932.4,2932.1,1.02321]
[1644643623573,0.64748153,2932.7,2932.1,1.02321]
[1644643623775,0.00621157,2932.4,2932.1,0.85271]
[1644643624473,0.00621157,2932.4,2932.0,2.33783835]
[1644643624672,0.00621157,2932.4,2932.0,1.22883835]
[1644643624872,0.64748153,2932.7,2932.0,0.73783835]
[1644643625115,0.00817692,2932.3,2932.0,0.73783835]
[1644643625917,0.64748153,2932.7,2932.0,0.73783835]
[1644643626420,0.00817695,2932.3,2932.0,0.73783835]
[1644643626818,0.00817695,2932.3,2932.0,0.56733835]
[1644643627317,0.00391115,2932.5,2932.0,0.54433301]
[1644643627518,0.00817695,2932.3,2932.0,0.54433301]
[1644643627722,0.00817695,2932.3,2932.0,0.84433301]
[1644643627923,0.00817695,2932.3,2932.1,1.02318]
[1644643628523,0.64748153,2932.8,2932.1,1.02318]
[1644643628724,0.00816034,2932.3,2932.1,1.02318]
[1644643628978,0.00816034,2932.3,2932.1,0.85268]
[1644643629587,0.64748153,2932.7,2932.1,0.85268]
[1644643629786,0.00816034,2932.3,2932.1,0.85268]
[1644643630987,0.64357038,2932.6,2932.1,0.85268]
[1644643631189,0.00816034,2932.3,2932.1,0.85268]
[1644643631491,0.00816034,2932.3,2932.0,0.54433301]
[1644643631888,0.00816034,2932.3,2932.2,0.0199397]
[1644643632188,0.0081641,2932.3,2932.2,0.0199397]
[1644643632720,0.36200374,2932.3,2932.2,1.10962808]
[1644643632919,0.36200374,2932.3,2932.2,0.1904397]
[1644643633320,0.35383964,2932.3,2932.2,1.28013826]
[1644643633520,0.35295754,2932.3,2932.2,0.1904397]
[1644643633722,0.00816404,2932.4,2932.0,1.38870227]
[1644643633919,0.00816404,2932.4,2932.0,1.55920227]
[1644643634319,0.00816404,2932.4,2932.1,0.85272]
[1644643634519,0.00391115,2932.5,2932.1,0.85272]
[1644643634719,0.00816407,2932.3,2932.1,0.85272]
[1644643635720,0.00391115,2932.4,2932.1,0.85272]
[1644643635921,0.00816407,2932.3,2932.1,0.85272]
[1644643636870,0.00391115,2932.5,2932.2,0.01996416]
[1644643637067,0.00816323,2932.3,2932.2,0.01996416]
[1644643637466,0.00916323,2932.3,2932.2,0.01996416]
[1644643638170,0.001,2932.3,2932.2,0.01996416]
[1644643640818,4.21522255,2932.3,2932.2,0.01996416]
[1644643641017,0.001,2932.3,2932.2,0.01996416]
[1644643641618,0.01436397,2932.3,2932.0,0.54433301]
[1644643641817,1.03271983,2932.2,2932.0,0.54433301]
[1644643642020,0.86321983,2932.1,2932.0,0.54433301]
[1644643642218,0.001,2932.1,2932.0,0.54433301]
[1644643643873,3.42309903,2932.1,2932.0,0.54433301]
[1644643644467,0.001,2932.1,2932.0,0.54433301]
[1644643645168,0.64723434,2932.1,2932.0,0.54433301]
[1644643645769,0.001,2932.1,2932.0,0.54433301]
[1644643645969,0.64703276,2932.1,2932.0,0.54433301]
[1644643646169,0.001,2932.1,2932.0,0.54433301]
[1644643646371,0.64710909,2932.1,2932.0,0.54433301]
[1644643646970,3.46829706,2932.1,2932.0,0.54433301]
[1644643647380,3.46829706,2932.1,2931.8,0.027036]
[1644643647381,3.4,2932.0,2931.8,0.027036]
[1644643647617,4.56865916,2931.9,2931.8,0.02051346]
[1644643647820,3.87796744,2931.9,2931.8,0.02051346]
[1644643648021,3.87796744,2931.9,2931.8,0.02703603]
[1644643648822,3.87796744,2931.9,2931.8,0.02051346]
[1644643649722,4.52332615,2931.9,2931.8,0.02051346]
[1644643650321,3.87796744,2931.9,2931.8,0.02051346]
[1644643651119,4.52338628,2931.9,2931.8,0.02051346]
[1644643651572,5.35288628,2931.9,2931.8,0.02051346]
[1644643651772,4.35288628,2931.9,2931.8,0.02051346]
[1644643651971,4.36660362,2931.9,2931.8,0.02051346]
[1644643652977,5.36660362,2931.9,2931.8,0.02051346]
[1644643653176,1.66013618,2931.9,2931.8,0.02051346]
[1644643653375,0.66013618,2931.9,2931.8,0.02051346]
[1644643653575,1.03610895,2931.9,2931.8,0.02051346]
[1644643653776,0.90008783,2931.8,2931.5,0.82820988]
[1644643653974,0.001,2931.8,2931.7,0.00652268]
[1644643654175,0.01371734,2931.9,2931.7,0.00652268]
[1644643654378,0.35384208,2931.8,2931.7,0.00652268]
[1644643654576,3.79555402,2931.8,2931.7,0.00652268]
[1644643654776,4.44061378,2931.8,2931.5,0.82820988]
[1644643655119,0.35484208,2931.7,2931.6,0.00652291]
[1644643655318,3.79819162,2931.7,2931.6,0.00652291]
[1644643655718,4.75822609,2931.7,2931.6,0.00652291]
[1644643656119,4.75822609,2931.7,2931.5,0.82820988]
[1644643656321,0.35484208,2931.6,2931.5,0.83473301]
[1644643656619,3.81092998,2931.6,2931.5,0.83473301]
[1644643657219,3.81092998,2931.6,2931.5,0.82820988]
[1644643659467,3.83335504,2931.6,2931.5,0.82820988]
[1644643661272,4.13335504,2931.6,2931.5,0.82820988]
[1644643661471,5.16083015,2931.6,2931.5,0.82820988]
[1644643661675,4.86083015,2931.6,2931.5,0.82820988]
[1644643661876,3.86083015,2931.6,2931.5,0.82820988]
[1644643662477,0.38231719,2931.6,2931.5,0.82820988]
[1644643662722,3.81473827,2931.6,2931.5,0.82820988]
[1644643663321,3.82021289,2931.6,2931.5,0.82820988]
[1644643663522,0.38231719,2931.6,2931.5,0.82820988]
[1644643664322,3.88561229,2931.6,2931.5,0.82820988]
[1644643664723,0.38231719,2931.6,2931.5,0.82820988]
[1644643668175,0.38131719,2931.6,2931.5,0.82820988]
[1644643672022,0.38231719,2931.6,2931.5,0.82820988]
[1644643673726,0.38231719,2931.6,2931.5,0.40292374]
[1644643677931,0.38131719,2931.6,2931.5,0.40292374]
[1644643678130,0.38231719,2931.6,2931.5,0.40292374]
[1644643679331,1.02737695,2931.6,2931.5,0.40292374]
[1644643681869,0.38231719,2931.6,2931.5,0.40292374]
[1644643682073,1.02830442,2931.6,2931.5,0.40292374]
[1644643682271,0.38231719,2931.6,2931.5,0.40292374]
[1644643685118,0.38131719,2931.6,2931.5,0.40292374]
[1644643685321,0.38231719,2931.6,2931.5,1.50154083]
[1644643686522,1.02830442,2931.6,2931.5,1.50154083]
[1644643686922,0.38231719,2931.6,2931.5,1.50154083]
[1644643690276,0.38131719,2931.6,2931.5,1.50154083]
[1644643691278,0.38231719,2931.6,2931.5,1.50154083]
[1644643692281,0.38131719,2931.6,2931.5,1.50154083]
[1644643693727,0.38131719,2931.6,2931.5,0.40292374]
[1644643693932,0.38231719,2931.6,2931.5,1.50190199]
[1644643694130,0.38131719,2931.6,2931.5,1.50185899]
[1644643694326,0.38131719,2931.6,2931.5,1.50185767]
[1644643694627,0.38131719,2931.6,2931.5,0.40292374]
[1644643694826,0.38131719,2931.6,2931.5,1.50188005]
[1644643695029,0.38131719,2931.6,2931.5,0.40292374]
[1644643695226,0.38131719,2931.6,2931.5,1.50164978]
[1644643695427,0.38029417,2931.6,2931.5,0.40292374]
[1644643695625,0.38029417,2931.6,2931.5,1.50163204]
[1644643695825,0.38029417,2931.6,2931.5,0.40292374]
[1644643696229,0.38029417,2931.6,2931.5,1.50161295]
[1644643697274,0.37333621,2931.6,2931.5,1.50161295]
[1644643698278,0.37333621,2931.6,2931.5,2.42392602]
[1644643698581,0.00491115,2932.1,2931.6,3.4]
[1644643698582,0.0129381,2932.1,2931.6,3.4]
[1644643698778,0.0129381,2932.1,2931.7,1.58968921]
[1644643698779,0.34696878,2932.0,2931.7,1.58968921]
[1644643698978,0.34696878,2932.0,2931.8,1.58805106]
[1644643699180,0.34696878,2932.0,2931.8,0.491]
[1644643699578,0.34696878,2931.9,2931.8,0.49899865]
[1644643699778,0.34696878,2932.0,2931.8,1.59603292]
[1644643699977,0.34696878,2932.0,2931.9,1.09692]
[1644643700230,0.34696878,2932.0,2931.9,1.09692368]
[1644643700427,0.34696878,2932.0,2931.8,0.00799865]
[1644643700628,0.34696878,2932.0,2931.5,0.89667371]
[1644643700629,0.34696878,2932.0,2931.5,0.40567371]
[1644643700829,0.0038609,2931.6,2931.5,0.40567371]
[1644643701028,0.0038609,2931.6,2931.5,1.50254722]
[1644643701229,0.0038609,2931.6,2931.5,1.49979725]
[1644643701429,0.35082968,2931.6,2931.5,1.49979725]
[1644643701630,0.37819112,2931.6,2931.5,1.49979725]
[1644643702431,0.37819112,2931.6,2931.5,0.40292374]
[1644643703035,0.37819112,2931.6,2931.5,1.49983086]
[1644643705477,0.37819112,2931.6,2931.5,0.40292374]
[1644643705977,0.37819112,2931.6,2931.5,1.50364284]
[1644643706980,0.36594548,2931.6,2931.5,1.50364284]
[1644643709041,0.36594548,2931.6,2931.5,0.40292374]
[1644643709544,0.36594548,2931.6,2931.5,1.50371072]
[1644643710142,0.36594548,2931.6,2931.5,1.50383325]
[1644643710343,0.36594548,2931.6,2931.5,0.40292374]
[1644643710544,1.01293271,2931.6,2931.5,0.40292374]
[1644643710743,4.59894196,2931.6,2931.5,0.40292374]
[1644643710942,3.95295473,2931.6,2931.5,0.40292374]
[1644643711373,0.36694548,2931.6,2931.5,0.40292374]
[1644643711975,1.01345575,2931.6,2931.5,0.40292374]
[1644643713284,0.36694548,2931.6,2931.5,0.40292374]
[1644643713480,0.36594548,2931.6,2931.5,0.40292374]
[1644643714783,0.66535826,2931.6,2931.5,0.40292374]
[1644643714981,1.01332704,2931.6,2931.5,0.40292374]
[1644643716025,0.36694548,2931.6,2931.5,1.49294994]
[1644643716228,0.36594548,2931.6,2931.5,1.49294994]
[1644643716630,0.36594548,2931.6,2931.5,0.40292374]
[1644643716829,0.36694548,2931.6,2931.5,0.40292374]
[1644643718329,0.36594548,2931.6,2931.5,0.40292374]
[1644643719978,0.36694548,2931.6,2931.5,0.40292374]
[1644643720178,1.01392639,2931.6,2931.5,0.40292374]
[1644643720375,1.01390617,2931.6,2931.5,0.40292374]
[1644643720576,2.17313932,2931.6,2931.5,0.40292374]
[1644643720777,2.17313932,2931.6,2931.5,0.19022068]
[1644643720978,1.52617863,2931.6,2931.5,0.19022068]
[1644643723429,2.17324818,2931.6,2931.5,0.19022068]
[1644643723629,1.52617863,2931.6,2931.5,0.19022068]
[1644643723830,2.17352527,2931.6,2931.5,0.19022068]
[1644643724031,1.52617863,2931.6,2931.5,0.19022068]
[1644643724229,2.17353919,2931.6,2931.5,0.19022068]
[1644643724833,1.52617863,2931.6,2931.5,0.19022068]
[1644643725034,2.17351849,2931.6,2931.5,0.19022068]
[1644643725831,1.52617863,2931.6,2931.5,0.19022068]
[1644643726032,2.38737035,2931.6,2931.5,0.19022068]
[1644643726481,1.52617863,2931.6,2931.5,0.19022068]
[1644643731530,0.36694548,2931.6,2931.5,0.19022068]
[1644643731728,0.36594548,2931.6,2931.5,0.19022068]
[1644643733631,0.36694548,2931.6,2931.5,0.19022068]
[1644643740729,0.36694548,2931.6,2931.0,0.74504472]
[1644643740930,0.99461891,2931.5,2931.1,1.10851978]
[1644643741131,0.34696878,2931.4,2931.1,1.10851978]
[1644643741377,0.34696878,2931.3,2931.1,1.10851978]
[1644643741579,0.34696878,2931.2,2930.9,3.251794]
[1644643741777,0.34696878,2931.1,2931.0,1.1085337]
[1644643741979,0.34696878,2931.1,2930.9,1.1111277]
[1644643742177,0.34696878,2931.0,2930.9,1.1111277]
[1644643743185,0.34696878,2931.0,2930.9,1.6021277]
[1644643743982,0.34696878,2931.0,2930.9,2.68780309]
[1644643744184,0.01751962,2931.6,2931.0,3.4]
[1644643744382,0.01751962,2931.6,2931.1,2.34381]
[1644643744383,0.01651962,2931.6,2931.1,2.34381]
[1644643744782,0.01651962,2931.6,2931.2,0.3]
[1644643744982,1.962e-05,2931.6,2931.3,0.491]
[1644643745227,1.962e-05,2931.6,2931.3,0.96948002]
[1644643745425,1.962e-05,2931.6,2931.3,4.38049912]
[1644643746126,1.962e-05,2931.6,2931.4,1.3]
[1644643746326,1.962e-05,2931.6,2931.5,0.6615]
[1644643747127,0.01021443,2931.9,2931.6,0.85285]
[1644643747328,0.01021443,2931.9,2931.7,1.58387271]
[1644643747529,0.00159216,2931.9,2931.7,1.58387271]
[1644643747730,0.01021495,2931.9,2931.7,1.58387271]
[1644643747932,0.01021495,2931.9,2931.7,0.491]
[1644643748732,0.00159216,2931.9,2931.7,0.491]
[1644643748976,0.01021491,2931.9,2931.7,0.491]
[1644643749977,0.00159216,2931.9,2931.7,0.491]
[1644643750178,0.01021491,2931.9,2931.7,0.491]
[1644643751084,0.00159216,2931.9,2931.7,0.491]
[1644643751382,0.01021491,2931.9,2931.7,0.491]
[1644643751580,0.01021491,2931.9,2931.8,0.01849466]
[1644643751581,0.00862275,2931.9,2931.8,0.01849466]
[1644643752379,0.64765013,2932.1,2931.8,0.01849466]
[1644643752622,0.00861787,2932.0,2931.8,0.01849466]
[1644643753527,0.64865013,2932.1,2931.8,0.01849466]
[1644643753732,0.64765013,2931.9,2931.8,0.01849466]
[1644643755327,0.00961787,2932.0,2931.8,0.01849466]
[1644643755529,0.18011787,2932.0,2931.8,0.01849466]
[1644643755927,1.03269172,2932.0,2931.8,0.01849466]
[1644643756128,0.001,2931.9,2931.8,0.01849466]
[1644643756378,0.00962267,2932.0,2931.8,0.01849466]
[1644643757079,0.86219172,2932.0,2931.8,0.01849466]
[1644643757276,0.87081439,2932.0,2931.8,0.01849466]
[1644643757881,0.64679516,2931.9,2931.8,0.01849466]
[1644643758082,0.64779516,2931.9,2931.8,0.01849466]
[1644643758284,0.64679516,2931.9,2931.8,0.01849466]
[1644643758686,0.86119172,2931.9,2931.8,0.01849466]
[1644643758886,0.00862271,2932.0,2931.8,0.01849466]
[1644643759083,0.1705,2931.9,2931.8,0.01849466]
[1644643760824,0.001,2932.0,2931.8,0.0100241]
[1644643760825,0.1715,2932.0,2931.8,0.0100241]
[1644643761026,0.86119172,2931.9,2931.8,0.0100241]
[1644643761225,0.86219172,2931.9,2931.8,0.0100241]
[1644643761827,0.86219172,2931.9,2931.8,0.01852821]
[1644643762428,3.70142957,2931.9,2931.8,0.01852821]
[1644643764181,4.03076678,2931.9,2931.8,0.01852821]
[1644643765583,5.18436678,2931.9,2931.8,0.01852821]
[1644643766788,5.01386678,2931.9,2931.8,0.01852821]
[1644643766986,5.01386678,2931.9,2931.3,0.00798002]
[1644643767188,1.00561018,2931.4,2931.3,0.00798002]
[1644643767385,1.33494739,2931.4,2931.3,0.00798002]
[1644643767828,1.33494739,2931.4,2930.7,0.0026865]
[1644643768033,0.32933721,2931.3,2930.7,1.11731051]
[1644643768229,0.32933721,2931.3,2931.2,0.00798015]
[1644643769033,0.32933721,2931.3,2930.8,0.0026865]
[1644643769436,0.64591895,2931.5,2931.1,0.00798043]
[1644643769437,0.32933721,2931.2,2931.1,0.00798043]
[1644643769632,0.64591895,2931.5,2931.1,1.12248573]
[1644643769832,0.64591895,2931.5,2931.2,0.0026865]
[1644643770034,0.32933721,2931.4,2931.1,0.00798043]
[1644643770232,0.32933721,2931.3,2931.2,1.11445806]
[1644643770633,0.32933721,2931.3,2931.2,0.00798015]
[1644643770832,0.32933721,2931.3,2931.2,1.12243821]
[1644643771033,0.32933721,2931.3,2931.2,1.12512378]
[1644643771233,0.97525616,2931.7,2931.2,1.12512378]
[1644643771478,0.32933721,2931.6,2931.3,1.11714363]
[1644643771679,0.32933721,2931.5,2931.1,0.00268557]
[1644643771880,0.32933721,2931.4,2931.1,1.1251399]
[1644643772081,0.32933721,2931.3,2931.2,2.14062947]
[1644643772280,0.32933721,2931.3,2931.2,2.1379439]
[1644643772480,0.64591895,2931.8,2931.3,3.4]
[1644643772481,0.97521693,2931.8,2931.3,3.4]
[1644643772687,0.001,2932.0,2931.4,1.2849739]
[1644643772688,0.32316661,2931.7,2931.4,1.2849739]
[1644643772884,0.96908556,2932.1,2931.5,1.6054739]
[1644643773085,0.00862184,2931.9,2931.6,1.1144739]
[1644643773286,0.32316661,2931.8,2931.7,0.491]
[1644643773483,0.32316661,2931.8,2931.7,1.6054739]
[1644643773686,0.32316661,2931.8,2931.7,0.491]
[1644643775427,0.00492906,2932.1,2931.7,0.491]
[1644643775428,0.3317894,2931.9,2931.7,0.491]
[1644643775628,0.32316661,2931.8,2931.7,0.491]
[1644643776030,0.00862279,2931.9,2931.7,0.491]
[1644643776229,0.64591895,2932.0,2931.7,0.491]
[1644643776230,0.32316661,2931.8,2931.7,0.491]
[1644643776429,0.64591895,2932.0,2931.7,0.491]
[1644643776630,0.00862275,2931.9,2931.7,0.491]
[1644643776930,0.00862275,2931.9,2931.6,0.1705]
[1644643776931,0.32316661,2931.8,2931.6,0.1705]
[1644643777133,0.32316661,2931.7,2931.5,1.87591]
[1644643777333,0.00862275,2931.9,2931.6,1.96253491]
[1644643777532,0.64591895,2932.0,2931.6,0.85285]
[1644643777533,0.33392184,2931.8,2931.6,0.85285]
[1644643777732,0.33392184,2931.7,2931.6,1.45285]
[1644643777930,0.33392184,2931.8,2931.6,1.96250022]
[1644643778131,0.33392184,2931.8,2931.5,1.1705]
[1644643778132,0.33392184,2931.8,2931.5,0.1705]
[1644643778330,0.33392184,2931.8,2931.6,1.10969651]
[1644643778531,0.33392184,2931.8,2931.5,1.70533]
[1644643778981,0.33392184,2931.7,2931.6,1.11327707]
[1644643779783,0.33392184,2931.8,2931.6,1.11327707]
[1644643780182,0.33392184,2931.7,2931.6,1.11327707]
[1644643780381,0.00862269,2931.9,2931.5,1.70533]
[1644643780382,0.33392184,2931.8,2931.5,1.70533]
[1644643780584,0.33392184,2931.8,2931.4,0.00268539]
[1644643780981,0.33492184,2931.8,2931.4,0.00268539]
[1644643781181,0.33392184,2931.7,2931.4,0.85560539]
[1644643781381,0.33392184,2931.6,2931.4,0.85560539]
[1644643781584,0.33392184,2931.5,2931.4,0.85560539]
[1644643781781,0.33392184,2931.5,2931.4,1.96890337]
[1644643781982,0.33392184,2931.8,2931.4,0.85560539]
[1644643782183,0.33392184,2931.7,2931.5,1.1134483]
[1644643782387,0.05010119,2931.3,2931.2,1.70578]
[1644643782637,0.38402303,2931.3,2931.2,2.83793524]
[1644643783742,0.38402303,2931.3,2931.2,2.83524979]
[1644643784843,0.38402303,2931.3,2931.2,3.00574979]
[1644643786145,0.38402303,2931.3,2931.2,2.83524979]
[1644643787179,0.38402303,2931.3,2931.2,2.85329773]
[1644643788482,0.05010119,2931.3,2931.2,2.85329773]
[1644643789283,0.3646825,2931.3,2931.2,2.85329773]
[1644643789483,0.3646825,2931.3,2931.2,1.14751773]
[1644643790529,0.3646825,2931.3,2931.2,2.00041773]
[1644643796381,0.3646825,2931.3,2931.2,2.91177219]
[1644643797736,0.3646825,2931.3,2931.2,2.91444672]
[1644643799137,0.3646825,2931.3,2931.2,3.91444672]
[1644643799335,0.3646825,2931.3,2931.2,2.91444672]
[1644643799735,0.3646825,2931.3,2931.2,3.51444672]
[1644643800136,0.3646825,2931.3,2931.2,2.60309226]
[1644643800336,0.3646825,2931.3,2931.2,3.60309226]
[1644643800937,0.3646825,2931.3,2931.2,2.60309226]
[1644643801392,0.3646825,2931.3,2931.2,3.60309226]
[1644643802181,0.3646825,2931.3,2931.2,4.09409226]
[1644643802582,0.05010119,2931.3,2931.2,4.09409226]
[1644643803189,0.36509827,2931.3,2931.2,4.09409226]
[1644643803384,0.05010119,2931.3,2931.2,4.09409226]
[1644643803585,0.36510463,2931.3,2931.2,4.09409226]
[1644643803785,0.36510559,2931.3,2931.2,4.09409226]
[1644643803985,0.05010119,2931.3,2931.2,4.09409226]
[1644643804887,0.36508966,2931.3,2931.2,4.09409226]
[1644643805128,0.05010119,2931.3,2931.2,4.09409226]
[1644643805331,0.36506956,2931.3,2931.2,4.08783301]
[1644643805528,0.3650692,2931.3,2931.2,4.08783301]
[1644643805732,0.36512398,2931.3,2931.2,4.08783301]
[1644643805928,0.36512443,2931.3,2931.2,4.08783301]
[1644643806128,0.05010119,2931.3,2931.2,4.08783301]
[1644643806329,0.36513566,2931.3,2931.2,4.08783301]
[1644643806628,0.05010119,2931.3,2931.2,4.08783301]
[1644643807228,0.3651433,2931.3,2931.2,4.08783301]
[1644643807529,0.36514258,2931.3,2931.2,4.08783301]
[1644643807731,0.05010119,2931.3,2931.2,4.08783301]
[1644643808132,0.36514485,2931.3,2931.2,4.08783301]
[1644643808334,0.05010119,2931.3,2931.2,4.08783301]
[1644643808533,0.36156713,2931.3,2931.2,4.08783301]
[1644643808733,0.36157897,2931.3,2931.2,3.49409226]
[1644643808980,0.36157897,2931.3,2931.2,2.49409226]
[1644643808981,0.0936121,2931.3,2931.2,2.49409226]
[1644643809181,0.44860907,2931.3,2931.2,2.49409226]
[1644643809382,0.44866041,2931.3,2931.2,2.49409226]
[1644643809579,0.13712301,2931.3,2931.2,2.49409226]
[1644643809779,0.44865529,2931.3,2931.2,2.49409226]
[1644643809979,0.13712301,2931.3,2931.2,2.49409226]
[1644643810180,0.44865454,2931.3,2931.2,2.49409226]
[1644643810379,0.13712301,2931.3,2931.2,2.47604432]
[1644643810583,0.4486767,2931.3,2931.2,2.47604432]
[1644643810780,0.13712301,2931.3,2931.2,2.47604432]
[1644643811280,0.44881095,2931.3,2931.2,2.47604432]
[1644643811481,0.13712301,2931.3,2931.2,2.47604432]
[1644643811685,0.44881071,2931.3,2931.2,2.47604432]
[1644643811882,0.13712301,2931.3,2931.2,2.47604432]
[1644643812083,0.44880674,2931.3,2931.2,2.47604432]
[1644643812283,0.13712301,2931.3,2931.2,2.47604432]
[1644643812483,0.44880782,2931.3,2931.2,4.07604432]
[1644643812934,0.13712301,2931.3,2931.2,4.07604432]
[1644643813233,0.13712301,2931.3,2931.2,3.07604432]
[1644643813434,0.44907474,2931.3,2931.2,2.47604432]
[1644643813736,0.44907715,2931.3,2931.2,2.47604432]
[1644643813933,0.13712301,2931.3,2931.2,2.47604432]
[1644643814134,0.44905817,2931.3,2931.2,3.07604432]
[1644643814333,0.44905817,2931.3,2931.2,2.47604432]
[1644643814334,0.13712301,2931.3,2931.2,2.47604432]
[1644643814734,0.44894365,2931.3,2931.2,2.47604432]
[1644643814933,0.44891678,2931.3,2931.2,2.47604432]
[1644643815137,0.13712301,2931.3,2931.2,2.47604432]
[1644643815437,0.44901917,2931.3,2931.2,2.47604432]
[1644643815636,0.13712301,2931.3,2931.2,2.47604432]
[1644643815835,0.44900079,2931.3,2931.2,2.47604432]
[1644643816037,0.13712301,2931.3,2931.2,2.47604432]
[1644643816239,0.44903655,2931.3,2931.2,2.47604432]
[1644643816477,0.13712301,2931.3,2931.2,2.47604432]
[1644643816977,0.44902508,2931.3,2931.2,2.47604432]
[1644643817382,0.13712301,2931.3,2931.2,2.47604432]
[1644643817582,0.44911118,2931.3,2931.2,2.47604432]
[1644643817784,0.08712301,2931.3,2931.2,2.47604432]
[1644643817985,0.39804383,2931.3,2931.2,2.47604432]
[1644643818186,0.08712301,2931.3,2931.2,2.47604432]
[1644643818386,0.39803976,2931.3,2931.2,2.47604432]
[1644643818586,0.08712301,2931.3,2931.2,2.47604432]
[1644643819086,0.3980264,2931.3,2931.2,2.77604432]
[1644643819284,0.08712301,2931.3,2931.2,4.07604432]
[1644643819487,0.39803691,2931.3,2931.2,4.07604432]
[1644643819687,0.08712301,2931.3,2931.2,4.07604432]
[1644643819885,0.39803272,2931.3,2931.2,2.77604432]
[1644643820132,0.39803272,2931.3,2931.2,2.47604432]
[1644643820133,0.39802376,2931.3,2931.2,2.47604432]
[1644643820333,0.08712301,2931.3,2931.2,2.47604432]